bitfinex-derivatives/quotes_SOLF0:USTF0_20260306
["timestamp","ask_amount","ask_price","bid_price","bid_amount"]
[1772828718407,3.6243639,84.94,84.891,6.40680186]
[1772828718611,3.6243639,84.94,84.893,6.40680186]
[1772828718612,10.596,84.938,84.893,6.40680186]
[1772828718916,179.0,84.982,84.881,6.40680186]
[1772828718917,3.6243639,84.93,84.881,6.40680186]
[1772828720012,10.597,84.931,84.881,6.40680186]
[1772828720411,10.598,84.925,84.881,6.40680186]
[1772828721918,10.598,84.925,84.882,6.41113425]
[1772828722619,3.6243639,84.93,84.882,6.41113425]
[1772828722811,3.6243639,84.92,84.882,6.41113425]
[1772828723918,10.599,84.913,84.882,6.41113425]
[1772828725212,3.6243639,84.9,84.841,6.41701085]
[1772828726021,3.6243639,84.89,84.845,6.41701085]
[1772828726220,3.6243639,84.88,84.845,6.41701085]
[1772828726616,10.604,84.877,84.845,6.41701085]
[1772828726809,10.604,84.877,84.827,6.41701085]
[1772828727014,3.6243639,84.87,84.827,6.41701085]
[1772828727209,10.605,84.87,84.827,6.41701085]
[1772828727416,3.6243639,84.86,84.827,6.41701085]
[1772828727616,14.2293639,84.87,84.827,6.41701085]
[1772828727820,3.6243639,84.85,84.812,6.37631025]
[1772828728020,3.6243639,84.85,84.803,6.37631025]
[1772828728810,10.607,84.847,84.803,6.37631025]
[1772828729912,3.6243639,84.85,84.803,6.37631025]
[1772828730115,10.606,84.855,84.803,6.37631025]
[1772828730317,10.606,84.855,84.811,6.39971964]
[1772828731219,459.97589138,84.86,84.811,6.39971964]
[1772828732117,10.606,84.859,84.811,6.39971964]
[1772828732519,459.97589138,84.86,84.811,6.39971964]
[1772828732919,470.58189138,84.86,84.811,17.01171964]
[1772828733121,3.6243639,84.84,84.799,6.38196067]
[1772828733624,3.6243639,84.85,84.801,6.38196067]
[1772828734124,10.607,84.848,84.801,6.38196067]
[1772828735419,10.606,84.856,84.802,6.37233788]
[1772828736319,456.35152748,84.86,84.788,6.37233788]
[1772828736515,3.6243639,84.85,84.791,6.37233788]
[1772828736720,3.6243639,84.84,84.791,6.37233788]
[1772828736922,10.606,84.856,84.811,6.38553955]
[1772828737224,459.97589138,84.86,84.811,6.38553955]
[1772828737526,456.35152748,84.86,84.821,6.38553955]
[1772828738627,459.97589138,84.86,84.81,6.38553955]
[1772828738921,459.97589138,84.86,84.81,10.00990345]
[1772828739127,459.97589138,84.86,84.811,6.31263725]
[1772828739718,10.606,84.859,84.811,6.31263725]
[1772828740530,10.607,84.852,84.811,6.31263725]
[1772828740730,3.6243639,84.85,84.799,16.92563725]
[1772828740927,3.6243639,84.85,84.8,6.31263725]
[1772828741329,10.609,84.837,84.8,6.31263725]
[1772828742132,3.6243639,84.84,84.8,6.31263725]
[1772828743327,3.6243639,84.85,84.8,9.93700115]
[1772828743531,3.6243639,84.85,84.801,6.28290225]
[1772828744537,10.608,84.839,84.801,6.28290225]
[1772828744732,3.6243639,84.85,84.801,6.28290225]
[1772828745039,3.6243639,84.84,84.803,6.30471299]
[1772828745427,10.609,84.834,84.788,6.30471299]
[1772828745633,3.6243639,84.82,84.771,6.30471299]
[1772828745838,3.6243639,84.81,84.771,6.30471299]
[1772828746036,3.6243639,84.81,84.678,177.0]
[1772828746037,3.6243639,84.8,84.756,6.30471299]
[1772828746236,10.612,84.807,84.756,6.30471299]
[1772828746433,3.64151483,84.8,84.756,6.30471299]
[1772828747233,3.64151483,84.81,84.761,6.37815869]
[1772828748535,3.64151483,84.82,84.761,6.37815869]
[1772828748736,10.611,84.819,84.771,6.37815869]
[1772828749644,3.64151483,84.82,84.771,6.37815869]
[1772828749840,3.64151483,84.83,84.773,6.38734608]
[1772828750346,10.61,84.829,84.775,6.38734608]
[1772828751642,10.609,84.837,84.781,6.31467524]
[1772828751842,3.64151483,84.83,84.781,6.31467524]
[1772828752140,10.609,84.837,84.781,6.31467524]
[1772828752647,10.607,84.847,84.793,6.31467524]
[1772828752942,459.99304231,84.86,84.811,6.31467524]
[1772828753342,10.606,84.856,84.811,6.31467524]
[1772828755739,459.99304231,84.86,84.811,6.31467524]
[1772828755740,456.35152748,84.86,84.811,6.31467524]
[1772828755946,456.35152748,84.86,84.831,6.31863569]
[1772828756343,456.35152748,84.86,84.818,6.31865374]
[1772828757851,470.59904231,84.86,84.818,6.31865374]
[1772828758251,456.35152748,84.86,84.818,6.31865374]
[1772828758951,456.35152748,84.86,84.821,6.29735466]
[1772828761149,459.99304231,84.86,84.81,3.64151483]
[1772828761354,3.64151483,84.84,84.792,6.32139994]
[1772828762354,10.608,84.839,84.792,6.32139994]
[1772828763250,9.44975304,84.856,84.776,6.31584131]
[1772828763447,9.44975304,84.855,84.776,6.31584131]
[1772828763647,10.608,84.84,84.787,10.615]
[1772828763859,10.608,84.84,84.776,6.31584131]
[1772828764757,10.608,84.84,84.779,10.616]
[1772828765057,10.608,84.84,84.78,6.31584131]
[1772828765758,10.608,84.84,84.784,6.29471646]
[1772828766258,10.609,84.832,84.784,6.29471646]
[1772828767257,10.61,84.825,84.784,6.29471646]
[1772828768055,9.09588348,84.85,84.784,6.29471646]
[1772828768262,9.47592356,84.849,84.784,6.29471646]
[1772828768464,9.47592356,84.848,84.784,6.29471646]
[1772828768761,9.47592356,84.847,84.784,6.29471646]
[1772828769059,9.47592356,84.846,84.784,6.29471646]
[1772828769255,10.611,84.815,84.761,6.28352388]
[1772828769455,9.48700174,84.814,84.761,6.28352388]
[1772828769650,9.09588348,84.83,84.761,6.28352388]
[1772828769855,9.48756337,84.829,84.761,6.28352388]
[1772828770056,9.48756337,84.828,84.761,6.28352388]
[1772828770264,9.48756337,84.827,84.761,6.28352388]
[1772828770462,9.48756337,84.826,84.761,6.28352388]
[1772828770661,10.612,84.813,84.761,6.28352388]
[1772828770867,9.48756337,84.812,84.761,6.28352388]
[1772828771065,9.49193649,84.811,84.761,6.28352388]
[1772828771260,10.80491202,84.829,84.761,6.28352388]
[1772828771562,9.49495694,84.828,84.761,6.28352388]
[1772828771864,9.49495694,84.827,84.761,6.28352388]
[1772828772063,10.612,84.807,84.761,6.28352388]
[1772828772562,9.09588348,84.81,84.761,6.28352388]
[1772828772765,9.49440216,84.809,84.761,6.28352388]
[1772828772963,9.49440216,84.808,84.761,6.28352388]
[1772828773261,9.49440216,84.807,84.761,6.28352388]
[1772828773561,9.49440216,84.806,84.761,6.28352388]
[1772828773765,9.49440216,84.805,84.761,6.28352388]
[1772828773965,9.49440216,84.804,84.761,6.28352388]
[1772828774158,9.49475586,84.803,84.761,6.28352388]
[1772828774363,9.49475586,84.802,84.761,6.28352388]
[1772828774563,10.612,84.807,84.761,6.28352388]
[1772828774763,9.49230635,84.806,84.761,6.28352388]
[1772828774965,9.49230635,84.805,84.761,6.28352388]
[1772828775163,9.49230635,84.804,84.761,6.28352388]
[1772828775360,9.49230635,84.803,84.761,6.28352388]
[1772828775561,10.612,84.807,84.761,6.28352388]
[1772828775766,9.49054612,84.806,84.764,6.2761163]
[1772828775967,9.49054612,84.805,84.764,6.2761163]
[1772828776156,9.49054612,84.804,84.764,6.2761163]
[1772828776466,10.611,84.819,84.764,6.2761163]
[1772828776667,9.48907052,84.818,84.766,6.2761163]
[1772828776866,9.48907052,84.817,84.766,6.2761163]
[1772828777166,9.48907052,84.816,84.766,6.2761163]
[1772828777365,10.612,84.814,84.766,6.2761163]
[1772828777666,9.48907052,84.815,84.766,6.2761163]
[1772828777667,9.48907052,84.813,84.766,6.2761163]
[1772828777866,10.612,84.811,84.766,6.2761163]
[1772828778066,9.48907052,84.81,84.766,6.2761163]
[1772828778266,9.48907052,84.809,84.766,6.2761163]
[1772828778471,10.80491202,84.828,84.766,6.2761163]
[1772828778767,9.49099804,84.827,84.766,6.2761163]
[1772828778962,9.49099804,84.826,84.766,6.2761163]
[1772828779167,10.612,84.808,84.766,6.2761163]
[1772828781067,9.09588348,84.83,84.766,6.2761163]
[1772828781267,9.09588348,84.83,84.733,197.26035257]
[1772828781268,9.46347407,84.829,84.734,6.2773821]
[1772828781467,9.46347407,84.828,84.734,6.2773821]
[1772828781667,9.46347407,84.827,84.734,6.2773821]
[1772828781868,9.46347407,84.826,84.734,6.2773821]
[1772828782065,9.46347407,84.825,84.734,6.2773821]
[1772828782265,10.613,84.801,84.755,6.2773821]
[1772828782467,9.46347407,84.823,84.755,6.2773821]
[1772828782668,9.09588348,84.83,84.755,6.2773821]
[1772828782669,9.46347407,84.822,84.755,6.2773821]
[1772828782862,9.46347407,84.821,84.755,6.2773821]
[1772828783065,9.46347407,84.82,84.755,6.2773821]
[1772828783261,9.46347407,84.819,84.755,6.2773821]
[1772828783466,9.46347407,84.818,84.755,6.2773821]
[1772828783666,9.46347407,84.817,84.755,6.2773821]
[1772828783971,9.46347407,84.817,84.733,197.26035257]
[1772828783972,10.612,84.808,84.757,6.27495702]
[1772828784465,3.64139559,84.8,84.757,6.27495702]
[1772828785861,10.613,84.799,84.757,6.27495702]
[1772828786573,10.614,84.793,84.757,6.27495702]
[1772828788768,10.613,84.8,84.757,6.27495702]
[1772828788971,14.25439559,84.8,84.757,6.27495702]
[1772828789273,3.64139559,84.8,84.757,6.27495702]
[1772828789468,10.616,84.782,84.757,6.27495702]
[1772828789863,3.64139559,84.8,84.757,6.27495702]
[1772828790877,10.615,84.789,84.757,6.27495702]
[1772828791374,10.616,84.778,84.745,6.29999473]
[1772828792073,10.615,84.784,84.745,6.29999473]
[1772828792476,3.64139559,84.8,84.751,6.29997439]
[1772828792974,3.64139559,84.79,84.751,6.29997439]
[1772828793471,3.64139559,84.8,84.751,6.29997439]
[1772828793674,11.51846042,84.804,84.751,6.29997439]
[1772828793873,3.64139559,84.81,84.751,6.29997439]
[1772828794073,9.46013984,84.809,84.751,6.29997439]
[1772828794378,3.64139559,84.79,84.752,6.30605664]
[1772828797174,10.614,84.795,84.752,6.30605664]
[1772828797976,3.64139559,84.8,84.752,6.30605664]
[1772828798573,3.64139559,84.8,84.753,6.30516558]
[1772828799373,10.614,84.798,84.753,6.30516558]
[1772828799578,3.64139559,84.79,84.753,6.30516558]
[1772828800074,10.614,84.798,84.753,6.30516558]
[1772828800475,10.614,84.793,84.753,6.30516558]
[1772828800677,3.64139559,84.78,84.731,6.30155318]
[1772828800877,3.64139559,84.78,84.734,6.30155318]
[1772828801378,3.64139559,84.75,84.711,6.29550366]
[1772828801573,9.45037318,84.779,84.627,188.66]
[1772828801574,3.64139559,84.72,84.668,6.29550366]
[1772828801773,14.44173922,84.787,84.667,14.97580929]
[1772828801774,3.64139559,84.73,84.671,6.29550366]
[1772828801972,3.64139559,84.73,84.681,6.29550366]
[1772828802581,3.64139559,84.74,84.691,6.29550366]
[1772828802875,285.53340794,84.782,84.691,6.29550366]
[1772828802876,10.62,84.749,84.691,6.29550366]
[1772828803081,3.64139559,84.75,84.701,5.98772429]
[1772828804376,9.43819067,84.776,84.701,5.98772429]
[1772828804580,3.64139559,84.76,84.704,5.98772429]
[1772828804773,9.43819067,84.774,84.721,5.98772429]
[1772828804972,9.43261138,84.779,84.721,5.98772429]
[1772828805180,9.43261138,84.778,84.668,5.99568237]
[1772828805380,9.43261138,84.777,84.691,5.99568237]
[1772828805580,3.64139559,84.76,84.701,5.99568237]
[1772828805781,3.64139559,84.76,84.711,5.99568237]
[1772828806581,10.618,84.761,84.711,5.99568237]
[1772828807384,10.617,84.773,84.711,5.99568237]
[1772828808783,9.42991451,84.795,84.711,5.99568237]
[1772828808982,9.43327064,84.803,84.733,6.00571255]
[1772828809182,9.43327064,84.802,84.733,6.00571255]
[1772828809385,165.107,84.798,84.668,6.0152133]
[1772828809679,9.10915754,84.76,84.669,6.0152133]
[1772828809884,10.62,84.743,84.671,6.0152133]
[1772828810084,9.60088959,84.742,84.671,6.0152133]
[1772828810284,10.62,84.743,84.671,6.0152133]
[1772828810877,10.619,84.754,84.672,6.0152133]
[1772828811081,9.60204208,84.753,84.672,6.0152133]
[1772828811278,9.60204208,84.752,84.672,6.0152133]
[1772828811579,10.76364544,84.779,84.686,5.93528182]
[1772828811780,10.76364544,84.775,84.686,5.93528182]
[1772828811986,20.36446903,84.774,84.686,5.93528182]
[1772828812283,9.60082359,84.773,84.686,5.93528182]
[1772828812488,9.60082359,84.772,84.686,5.93528182]
[1772828812790,10.619,84.751,84.686,5.93528182]
[1772828813088,9.60082359,84.75,84.686,5.93528182]
[1772828813386,10.619,84.751,84.686,5.93528182]
[1772828813889,9.10915754,84.76,84.668,5.94141438]
[1772828814089,9.60247564,84.759,84.668,5.94141438]
[1772828814284,9.60247564,84.758,84.668,5.94141438]
[1772828814484,9.60247564,84.757,84.668,5.94141438]
[1772828814684,9.60247564,84.756,84.668,5.94141438]
[1772828814889,10.621,84.74,84.672,5.94141438]
[1772828815790,10.621,84.74,84.674,5.95037284]
[1772828816891,10.621,84.74,84.678,5.9508075]
[1772828817287,9.59605055,84.75,84.678,5.9508075]
[1772828817491,9.59605055,84.749,84.678,5.9508075]
[1772828817793,9.10915754,84.76,84.678,5.9508075]
[1772828817988,9.59139536,84.759,84.682,5.95717632]
[1772828818189,9.59139536,84.758,84.682,5.95717632]
[1772828818488,9.59139536,84.757,84.686,5.95717632]
[1772828818688,9.59139536,84.756,84.686,5.95717632]
[1772828818890,9.59139536,84.755,84.686,5.95717632]
[1772828819190,9.10915754,84.76,84.692,5.95717632]
[1772828819396,9.58634078,84.759,84.692,5.95717632]
[1772828819692,9.10915754,84.76,84.692,5.95717632]
[1772828819693,9.58634078,84.758,84.692,5.95717632]
[1772828819994,9.58634078,84.757,84.692,5.95717632]
[1772828820194,10.618,84.759,84.692,5.95717632]
[1772828820394,9.58609007,84.758,84.692,5.95717632]
[1772828820588,9.10915754,84.76,84.692,5.95717632]
[1772828820589,9.58609007,84.757,84.692,5.95717632]
[1772828820790,9.10915754,84.76,84.692,5.95717632]
[1772828821491,9.10915754,84.78,84.695,5.9493554]
[1772828821696,9.58886533,84.779,84.695,5.9493554]
[1772828821894,9.58886533,84.778,84.695,5.9493554]
[1772828822092,9.58886533,84.777,84.695,5.9493554]
[1772828822288,9.58886533,84.776,84.695,5.9493554]
[1772828822491,10.76364544,84.797,84.714,5.94938181]
[1772828822692,10.76364544,84.794,84.714,5.94938181]
[1772828822892,9.59076073,84.793,84.714,5.94938181]
[1772828823092,9.59076073,84.792,84.714,5.94938181]
[1772828823293,10.616,84.782,84.714,5.94938181]
[1772828823493,9.10915754,84.78,84.714,5.94938181]
[1772828823791,9.59076073,84.779,84.714,5.94938181]
[1772828823993,20.20676073,84.778,84.714,5.94938181]
[1772828824192,9.59076073,84.777,84.714,5.94938181]
[1772828824394,9.59076073,84.777,84.7,9.10915754]
[1772828824395,9.59076073,84.776,84.718,5.95259597]
[1772828824696,9.10915754,84.78,84.718,5.95259597]
[1772828824894,9.59400706,84.779,84.718,5.95259597]
[1772828825195,9.59400706,84.778,84.718,5.95259597]
[1772828825386,9.59400706,84.777,84.718,5.95259597]
[1772828825586,9.10915754,84.78,84.718,5.95259597]
[1772828825898,9.10915754,84.8,84.718,5.95259597]
[1772828826097,9.59300189,84.799,84.718,5.95259597]
[1772828826292,9.59300189,84.798,84.718,5.95259597]
[1772828826499,3.64414258,84.77,84.721,5.937487]
[1772828827395,3.64414258,84.78,84.721,5.937487]
[1772828827794,10.617,84.769,84.721,5.937487]
[1772828828898,3.64414258,84.77,84.721,5.937487]
[1772828830201,14.26114258,84.77,84.721,5.937487]
[1772828830394,3.64414258,84.76,84.721,5.937487]
[1772828830894,10.618,84.759,84.721,5.937487]
[1772828832099,10.619,84.752,84.71,3.64414258]
[1772828832400,3.64414258,84.76,84.711,5.94902391]
[1772828832898,14.26214258,84.76,84.711,5.94902391]
[1772828833297,10.618,84.76,84.721,5.94399573]
[1772828833499,14.26214258,84.76,84.721,5.94399573]
[1772828834495,3.64414258,84.76,84.701,5.94399573]
[1772828834695,9.60865493,84.759,84.701,5.94399573]
[1772828834896,9.60865493,84.758,84.701,5.94399573]
[1772828835196,9.60865493,84.757,84.701,5.94399573]
[1772828835400,9.60865493,84.756,84.701,5.94399573]
[1772828835697,3.64414258,84.76,84.711,5.91457799]
[1772828836202,10.619,84.751,84.711,5.91457799]
[1772828836401,3.64414258,84.76,84.711,5.91457799]
[1772828836402,3.64414258,84.75,84.711,5.91457799]
[1772828838895,3.64414258,84.74,84.711,5.91457799]
[1772828840606,3.64414258,84.75,84.711,5.91457799]
[1772828840804,9.58972345,84.749,84.711,5.91457799]
[1772828840998,10.618,84.762,84.711,5.91457799]
[1772828841201,9.5924431,84.761,84.711,5.91457799]
[1772828841403,9.5924431,84.76,84.711,5.91457799]
[1772828841601,10.618,84.762,84.711,5.91457799]
[1772828841801,9.5970044,84.761,84.711,5.91457799]
[1772828842002,9.5970044,84.76,84.711,5.91457799]
[1772828842200,10.618,84.762,84.711,5.91457799]
[1772828842201,9.60026556,84.759,84.711,5.91457799]
[1772828842401,10.618,84.762,84.711,5.91457799]
[1772828842702,3.64414258,84.78,84.721,5.90079187]
[1772828842903,9.60159437,84.779,84.721,5.90079187]
[1772828843098,10.616,84.777,84.731,5.93142535]
[1772828843307,10.616,84.777,84.689,21.255]
[1772828843308,3.64414258,84.79,84.741,5.93142535]
[1772828843502,9.60610775,84.789,84.741,5.93142535]
[1772828843703,9.60610775,84.788,84.741,5.93142535]
[1772828843904,10.615,84.786,84.741,5.93142535]
[1772828844097,9.60610775,84.785,84.741,5.93142535]
[1772828844403,10.616,84.781,84.741,5.93142535]
[1772828844605,13.25025033,84.78,84.741,5.93142535]
[1772828844805,9.60610775,84.779,84.741,5.93142535]
[1772828845006,9.60610775,84.778,84.741,5.93142535]
[1772828845208,9.61015361,84.777,84.741,5.93142535]
[1772828845413,9.61015361,84.776,84.741,5.93142535]
[1772828845713,3.64414258,84.78,84.741,5.93142535]
[1772828845914,9.61032634,84.779,84.741,5.93142535]
[1772828846214,9.61032634,84.778,84.741,5.93142535]
[1772828846416,10.616,84.776,84.741,5.93142535]
[1772828846610,9.61032634,84.775,84.741,5.93142535]
[1772828846913,9.61339587,84.774,84.741,5.93142535]
[1772828847105,10.616,84.776,84.741,5.93142535]
[1772828847306,10.617,84.773,84.729,6.02207747]
[1772828847506,9.61497015,84.772,84.729,6.02207747]
[1772828847707,3.64414258,84.78,84.731,6.02207747]
[1772828847913,9.61504191,84.779,84.731,6.02207747]
[1772828848217,10.616,84.777,84.731,6.02207747]
[1772828848417,9.61504191,84.776,84.731,6.02207747]
[1772828848611,9.61810314,84.775,84.731,6.02207747]
[1772828848819,10.617,84.77,84.731,6.02207747]
[1772828849018,3.64414258,84.78,84.731,6.02207747]
[1772828849218,3.64414258,84.77,84.731,6.02207747]
[1772828849513,9.61897861,84.769,84.731,6.02207747]
[1772828849719,3.64414258,84.76,84.711,6.02241609]
[1772828849919,9.61897861,84.759,84.713,6.02241609]
[1772828850216,9.61897861,84.758,84.713,6.02241609]
[1772828850418,9.61897861,84.757,84.713,6.02241609]
[1772828850612,9.61897861,84.756,84.713,6.02241609]
[1772828850811,10.619,84.751,84.713,6.02241609]
[1772828851007,3.64414258,84.75,84.7,6.01802418]
[1772828851216,3.64414258,84.74,84.7,6.01802418]
[1772828852317,465.97941896,84.78,84.7,6.01802418]
[1772828852318,14.26414258,84.75,84.7,6.01802418]
[1772828852518,10.76364544,84.771,84.7,6.01802418]
[1772828852519,3.64414258,84.76,84.711,6.01798097]
[1772828852715,3.64414258,84.75,84.711,6.01798097]
[1772828853114,10.76364544,84.771,84.691,6.02064299]
[1772828853315,3.64414258,84.75,84.701,6.02064299]
[1772828853719,3.64414258,84.75,84.704,6.02064299]
[1772828853922,3.64414258,84.76,84.711,6.02064299]
[1772828854114,9.62123293,84.759,84.711,6.02064299]
[1772828854420,9.62123293,84.758,84.711,6.02064299]
[1772828854616,9.62123293,84.757,84.711,6.02064299]
[1772828854817,9.62123293,84.756,84.712,6.02064299]
[1772828855015,9.62123293,84.755,84.712,6.02064299]
[1772828855221,9.62445356,84.754,84.712,6.02064299]
[1772828855415,3.64414258,84.76,84.712,6.02064299]
[1772828855720,3.64414258,84.76,84.71,3.64414258]
[1772828855721,9.62507373,84.759,84.714,5.99122726]
[1772828855916,3.64414258,84.77,84.721,5.99122726]
[1772828856116,9.62472577,84.769,84.724,5.99122726]
[1772828856322,9.62472577,84.768,84.724,5.99122726]
[1772828856516,469.62356154,84.78,84.724,5.99122726]
[1772828856721,9.62511148,84.779,84.724,5.99122726]
[1772828856916,9.62511148,84.778,84.724,5.99122726]
[1772828857115,9.62511148,84.777,84.724,5.99122726]
[1772828857315,9.62511148,84.776,84.724,5.99122726]
[1772828857621,3.64414258,84.77,84.726,10.622]
[1772828857814,9.62511148,84.769,84.727,6.00326931]
[1772828858020,9.62511148,84.768,84.727,6.00326931]
[1772828858217,9.62511148,84.767,84.727,6.00326931]
[1772828858420,9.62511148,84.766,84.727,6.00326931]
[1772828858621,9.62511148,84.765,84.727,6.00326931]
[1772828858820,3.64414258,84.77,84.727,6.00326931]
[1772828859021,9.62607716,84.769,84.727,6.00326931]
[1772828859223,9.62607716,84.768,84.727,6.00326931]
[1772828859521,9.62607716,84.767,84.727,6.00326931]
[1772828859720,9.62607716,84.766,84.727,6.00326931]
[1772828859922,9.62607716,84.765,84.727,6.00326931]
[1772828860119,3.64414258,84.77,84.727,6.00326931]
[1772828860422,9.6272744,84.769,84.727,6.00326931]
[1772828860717,9.6272744,84.769,84.683,21.256]
[1772828860718,3.64414258,84.76,84.706,10.625]
[1772828860919,9.62910464,84.759,84.707,6.04735989]
[1772828861119,9.62910464,84.758,84.707,6.04735989]
[1772828861320,9.62910464,84.757,84.707,6.04735989]
[1772828861520,9.62910464,84.756,84.707,6.04735989]
[1772828861723,9.62910464,84.755,84.711,6.04766]
[1772828861918,9.62910464,84.754,84.711,6.04766]
[1772828862123,3.64414258,84.76,84.711,6.04766]
[1772828862324,9.63229423,84.759,84.713,6.04766]
[1772828862518,9.63229423,84.758,84.713,6.04766]
[1772828862821,9.63229423,84.757,84.713,6.04766]
[1772828863018,9.63229423,84.756,84.713,6.04766]
[1772828863223,9.63367024,84.755,84.721,6.04494718]
[1772828863424,10.617,84.767,84.721,6.04494718]
[1772828863725,9.63455664,84.766,84.721,6.04494718]
[1772828863924,9.63455664,84.765,84.721,6.04494718]
[1772828864126,10.619,84.758,84.721,6.04494718]
[1772828864328,9.63455664,84.757,84.721,6.04494718]
[1772828864626,9.63455664,84.756,84.721,6.04494718]
[1772828864827,9.63455664,84.755,84.721,6.04494718]
[1772828865021,9.63455664,84.754,84.721,6.04494718]
[1772828865223,3.64414258,84.76,84.721,6.04494718]
[1772828865423,9.63779717,84.759,84.721,6.04494718]
[1772828865624,3.64414258,84.75,84.698,6.04747043]
[1772828865831,3.64414258,84.72,84.671,6.04747043]
[1772828866030,3.64414258,84.72,84.676,6.04747043]
[1772828866430,3.64414258,84.73,84.676,6.04747043]
[1772828866630,3.64414258,84.73,84.678,6.04747043]
[1772828867432,3.64414258,84.73,84.689,6.01533483]
[1772828867726,3.64414258,84.72,84.689,6.01533483]
[1772828868532,10.622,84.729,84.689,6.01533483]
[1772828869732,10.622,84.729,84.641,21.267]
[1772828869733,3.64776916,84.71,84.671,6.03535675]
[1772828870336,3.64776916,84.71,84.673,6.03535675]
[1772828870531,10.622,84.731,84.673,6.03535675]
[1772828870532,3.64776916,84.73,84.673,6.03535675]
[1772828871830,3.64776916,84.73,84.675,6.03182906]
[1772828872439,3.64776916,84.73,84.681,6.03182906]
[1772828873639,3.64776916,84.73,84.684,6.03582165]
[1772828873838,16.50471277,84.773,84.691,6.03582165]
[1772828873839,3.64776916,84.74,84.691,6.03582165]
[1772828874045,3.64776916,84.73,84.691,6.03582165]
[1772828875344,2.0536668,84.773,84.639,21.267]
[1772828875345,3.64776916,84.72,84.673,6.0432456]
[1772828875540,3.64776916,84.73,84.681,6.0432456]
[1772828876748,3.64776916,84.73,84.686,6.04327064]
[1772828878148,9.48548895,84.729,84.686,6.04327064]
[1772828878350,3.64776916,84.72,84.686,6.04327064]
[1772828880347,3.64776916,84.73,84.686,6.04327064]
[1772828880547,3.64776916,84.72,84.686,6.04327064]
[1772828881145,3.64776916,84.73,84.671,6.04742799]
[1772828881344,3.64776916,84.73,84.69,6.04742799]
[1772828881749,10.76364544,84.755,84.69,6.04742799]
[1772828881951,3.64776916,84.74,84.69,6.04742799]
[1772828882248,9.47885319,84.739,84.69,6.04742799]
[1772828882448,3.64776916,84.73,84.69,6.04742799]
[1772828882652,3.64776916,84.74,84.69,6.04742799]
[1772828882953,9.47808167,84.739,84.69,6.04742799]
[1772828883154,3.64776916,84.74,84.692,6.07373441]
[1772828883353,3.64776916,84.73,84.692,6.07373441]
[1772828884154,3.64776916,84.75,84.695,6.07373441]
[1772828884853,3.64776916,84.75,84.698,6.07373441]
[1772828885048,3.64776916,84.74,84.698,6.07373441]
[1772828885448,14.26576916,84.76,84.712,6.0972939]
[1772828885753,10.76364544,84.772,84.656,21.263]
[1772828885754,3.64776916,84.73,84.681,6.0972939]
[1772828886352,3.64776916,84.73,84.683,6.0972939]
[1772828886753,3.64776916,84.72,84.683,6.0972939]
[1772828887559,3.64776916,84.73,84.687,6.15888856]
[1772828889963,3.64776916,84.73,84.689,6.1540846]
[1772828891464,3.64776916,84.75,84.701,6.16028403]
[1772828891669,9.48824981,84.749,84.701,6.16028403]
[1772828891962,9.48824981,84.748,84.704,6.16028403]
[1772828892263,9.48824981,84.747,84.704,6.16028403]
[1772828892461,9.48824981,84.746,84.704,6.16028403]
[1772828892661,3.64776916,84.75,84.704,6.16028403]
[1772828892862,9.48987712,84.749,84.704,6.16028403]
[1772828893062,3.64776916,84.74,84.704,6.16028403]
[1772828893262,3.64776916,84.75,84.704,6.16028403]
[1772828893464,9.49179663,84.749,84.704,6.16028403]
[1772828893764,9.49179663,84.748,84.704,6.16028403]
[1772828893959,9.49179663,84.747,84.704,6.16028403]
[1772828894163,9.49179663,84.746,84.704,6.16028403]
[1772828894366,9.49179663,84.745,84.706,10.625]
[1772828894560,3.64776916,84.75,84.704,6.16028403]
[1772828894561,9.49179663,84.744,84.704,6.16028403]
[1772828894760,3.64776916,84.75,84.704,6.16028403]
[1772828894961,9.49367642,84.749,84.704,6.16028403]
[1772828895161,9.49367642,84.748,84.704,6.16028403]
[1772828895366,9.49367642,84.747,84.704,6.16028403]
[1772828895567,9.49367642,84.746,84.704,6.16028403]
[1772828895868,9.49367642,84.745,84.704,6.16028403]
[1772828896060,9.49367642,84.744,84.704,6.16028403]
[1772828896260,3.64776916,84.75,84.705,10.625]
[1772828896464,3.64776916,84.73,84.681,6.15063442]
[1772828897370,3.64776916,84.74,84.681,6.15063442]
[1772828897569,9.48970219,84.739,84.691,6.15642526]
[1772828897773,9.48970219,84.738,84.691,6.15642526]
[1772828898071,9.48970219,84.737,84.691,6.15642526]
[1772828898271,3.64776916,84.74,84.691,6.15642526]
[1772828898570,9.49228004,84.739,84.691,6.15642526]
[1772828898764,9.49228004,84.738,84.693,6.15642526]
[1772828898966,9.49228004,84.737,84.693,6.15642526]
[1772828899163,3.64776916,84.74,84.693,6.15642526]
[1772828899363,9.46709594,84.739,84.693,6.15642526]
[1772828899564,9.46709594,84.738,84.695,6.13539061]
[1772828899769,10.62,84.745,84.695,6.13539061]
[1772828899969,9.46774173,84.744,84.695,6.13539061]